fUSD/lending_fUSD_20260126
["ID","MTS","AMOUNT","RATE_DAILY","PERIOD"]
[403598439,1769406637834,-500.0,0.0001615,2]
[403598440,1769406637843,-150.0,0.0001615,2]
[403598441,1769406637854,-112.51372681,0.0001615,2]
[403598442,1769406637866,-37.48627319,0.0001615,2]
[403598443,1769406637877,-150.0,0.0001615,2]
[403598444,1769406637889,-150.0,0.0001615,2]
[403598445,1769406637898,-150.0,0.0001615,2]
[403598446,1769406637907,-147.11274322,0.0001615,2]
[403598468,1769407475046,1000.0,0.000126,4]
[403598484,1769407831650,-252.0,0.00012507,2]
[403598485,1769407831661,-45.04785907,0.00012512,2]
[403598486,1769407831673,-454.95214093,0.00012512,2]
[403598487,1769407831682,-535.02650196,0.00012519,2]
[403598488,1769407831693,-1023.31953828,0.00012519,2]
[403598489,1769407831723,-735.86395976,0.00012519,2]
[403598490,1769407831733,-330.24613079,0.00013758,2]
[403598491,1769407831742,-195.0,0.00013758,2]
[403598492,1769407831751,-255.37429024,0.0001461,2]
[403598493,1769407831764,-44.62570976,0.0001461,2]
[403598494,1769407831773,-342.4906902,0.00014611,2]
[403598495,1769407831785,-586.5593098,0.00014611,2]
[403598496,1769407831795,-266.13,0.00014614,2]
[403598497,1769407831805,-233.48,0.00014758,2]
[403598498,1769407831815,-1200.0,0.00015108,2]
[403598499,1769407831824,-612.7956509,0.00015109,2]
[403598500,1769407831838,-387.2043491,0.00015109,2]
[403598501,1769407831848,-330.58,0.00015208,2]
[403598502,1769407831858,-300.0,0.00015277,2]
[403598503,1769407831868,-300.0,0.00015277,2]
[403598504,1769407831878,-558.94,0.00015278,2]
[403598505,1769407831887,-293.41035272,0.00015278,2]
[403598506,1769407831899,-50.38964728,0.00015278,2]
[403598507,1769407831908,-178.95,0.000153,2]
[403598508,1769407831918,-168.50682541,0.000153,2]
[403598509,1769407831949,-175.81317459,0.000153,2]
[403598510,1769407831959,-468.76,0.000153,2]
[403598511,1769407831969,-300.0,0.00015324,2]
[403598512,1769407831978,-33.37721074,0.00015325,2]
[403598513,1769407831990,-966.62278926,0.00015325,2]
[403598514,1769407832000,-2220.04,0.00015354,2]
[403598515,1769407832010,-67.84859137,0.00015378,2]
[403598517,1769407832021,-491.09140863,0.00015378,2]
[403598519,1769407832030,-150.0,0.00015378,2]
[403598521,1769407832040,-937.18,0.00015378,2]
[403598523,1769407832049,-102.3959475,0.00015386,2]
[403598528,1769407832064,-1958.42417155,0.00015386,2]
[403598531,1769407832075,-2548.73865149,0.00015386,2]
[403598534,1769407832087,-611.76344353,0.00015386,2]
[403598538,1769407832100,-1131.92990948,0.00015386,2]
[403598542,1769407832115,-617.41549646,0.00015386,2]
[403598545,1769407832124,-151.0,0.00015391,2]
[403598548,1769407832134,-151.0,0.00015392,2]
[403598550,1769407832143,-300.0,0.00015393,2]
[403598552,1769407832152,-166.34574902,0.00015394,2]
[403598554,1769407832162,-500.0,0.00015394,2]
[403598556,1769407832171,-225.12577292,0.00015394,2]
[403598557,1769407832180,-307.81703515,0.00015394,2]
[403598558,1769407832192,-192.18296485,0.00015394,2]
[403598559,1769407832202,-218.96822156,0.00015394,2]
[403598560,1769407832212,-543.6603492,0.00015394,2]
[403598561,1769407832222,-315.68935497,0.00015394,2]
[403598562,1769407832232,-500.0,0.00015394,2]
[403598563,1769407832242,-637.86997499,0.00015394,2]
[403598564,1769407832252,-500.0,0.00015394,2]
[403598565,1769407832262,-500.0,0.00015394,2]
[403598566,1769407832270,-500.0,0.00015394,2]
[403598567,1769407832280,-500.0,0.00015394,2]
[403598568,1769407832289,-31.19475836,0.00015394,2]
[403598569,1769407832301,-278.74958621,0.00015394,2]
[403598570,1769407832334,-190.05565543,0.00015394,2]
[403598571,1769407832345,-500.0,0.00015394,2]
[403598572,1769407832354,-472.98397701,0.00015394,2]
[403598573,1769407832364,-500.0,0.00015394,2]
[403598574,1769407832373,-207.8994773,0.00015394,2]
[403598575,1769407832382,-280.77469206,0.00015394,2]
[403598576,1769407832395,-385.22530794,0.00015394,2]
[403598577,1769407832404,-531.21469206,0.00015395,2]
[403598578,1769407832415,-579.47945186,0.00015395,2]
[403598579,1769407832426,-692793.23060629,0.00015395,2]
[403598580,1769407832436,-25331.65508369,0.00015395,2]
[403598581,1769407832447,-15204.41200265,0.00015395,2]
[403598582,1769407832458,-11646.00086345,0.00015395,2]
[403598583,1769407832468,-1280.51,0.00015578,2]
[403598584,1769407832478,-322.6107,0.00015579,2]
[403598585,1769407832487,-435.57304705,0.00015579,2]
[403598586,1769407832496,-578.20924308,0.00015579,2]
[403598587,1769407832506,-854.2589148,0.00015579,2]
[403598588,1769407832516,-151.0,0.00015579,2]
[403598589,1769407832525,-151.0,0.00015579,2]
[403598590,1769407832535,-151.0,0.00015579,2]
[403598591,1769407832544,-151.0,0.00015579,2]
[403598592,1769407832554,-151.0,0.00015579,2]
[403598593,1769407832564,-151.0,0.00015579,2]
[403598594,1769407832574,-151.0,0.00015579,2]
[403598595,1769407832583,-151.0,0.00015579,2]
[403598596,1769407832593,-151.0,0.00015579,2]
[403598597,1769407832602,-151.0,0.00015579,2]
[403598598,1769407832613,-151.0,0.00015579,2]
[403598599,1769407832627,-468.76,0.000156,2]
[403598600,1769407832637,-6970.66762,0.00015665,2]
[403598601,1769407832647,-1000.0,0.00015822,2]
[403598602,1769407832658,-468.76,0.000159,2]
[403598603,1769407832669,-162.0,0.000159,2]
[403598604,1769407832678,-162.0,0.000159,2]
[403598605,1769407832687,-6970.66762,0.00015945,2]
[403598606,1769407832698,-151.0,0.00015958,2]
[403598607,1769407832707,-6176.1724,0.00015961,2]
[403598608,1769407832717,-2500.0,0.00015961,2]
[403598609,1769407832726,-330.58,0.00015969,2]
[403598610,1769407832735,-558.8,0.00016012,2]
[403598611,1769407832745,-150.0,0.00016031,2]
[403598612,1769407832755,-4298.0,0.00016038,2]
[403598613,1769407832764,-151.0,0.00016058,2]
[403598614,1769407832774,-150.0,0.00016058,2]
[403598615,1769407832784,-689.28777395,0.0001606,2]
[403598616,1769407832793,-11919.3752814,0.00016061,2]
[403598617,1769407832803,-11317.8131754,0.00016061,2]
[403598625,1769407838133,-917.73,0.00016061,2]
[403598626,1769407838183,-400.23949762,0.00016061,2]
[403598627,1769407838195,-3760.68259054,0.00016061,2]
[403598628,1769407838249,-28689.99999883,0.00016061,2]
[403598632,1769407840166,-3554.411,0.00016061,2]
[403598633,1769407840178,-28854.25112451,0.00016061,2]
[403598634,1769407840215,-105726.0293116,0.00016061,2]
[403598635,1769407840225,-13660.2521817,0.00016061,2]
[403598636,1769407840235,-38215.333303,0.00016061,2]
[403598637,1769407840245,-151.0,0.00016061,2]
[403598638,1769407840255,-60237.4277707,0.00016061,2]
[403598639,1769407840267,-191.901362,0.00016061,2]
[403598640,1769407840278,-191.901362,0.00016061,2]
[403598641,1769407840288,-191.901362,0.00016061,2]
[403598642,1769407840297,-191.901362,0.00016061,2]
[403598643,1769407840307,-191.901362,0.00016061,2]
[403598644,1769407840317,-191.901362,0.00016061,2]
[403598645,1769407840327,-191.901362,0.00016061,2]
[403598646,1769407840337,-191.901362,0.00016061,2]
[403598647,1769407840346,-191.901362,0.00016061,2]
[403598648,1769407840356,-191.901362,0.00016061,2]
[403598649,1769407840365,-191.901362,0.00016061,2]
[403598650,1769407840375,-191.901362,0.00016061,2]
[403598651,1769407840384,-151.0,0.00016061,2]
[403598652,1769407840394,-151.0,0.00016061,2]
[403598653,1769407840403,-151.0,0.00016061,2]
[403598654,1769407840413,-289.463199,0.00016061,2]
[403598655,1769407840423,-151.0,0.00016061,2]
[403598656,1769407840433,-151.0,0.00016061,2]
[403598657,1769407840443,-151.0,0.00016061,2]
[403598658,1769407840452,-151.0,0.00016061,2]
[403598659,1769407840462,-151.0,0.00016061,2]
[403598660,1769407840471,-151.0,0.00016061,2]
[403598661,1769407840481,-265.802274,0.00016061,2]
[403598662,1769407840491,-1791.4323347,0.00016109,2]
[403598663,1769407840501,-1000.0,0.00016117,2]
[403598664,1769407840511,-885.86649465,0.00016127,2]
[403598665,1769407840521,-150.0,0.0001615,2]
[403598666,1769407840531,-151.12842579,0.0001615,2]
[403598667,1769407840541,-354.20819435,0.0001615,2]
[403598668,1769407840552,-221.98121043,0.0001615,2]
[403598669,1769407840561,-500.0,0.0001615,2]
[403598670,1769407840571,-500.0,0.0001615,2]
[403598671,1769407840580,-500.0,0.0001615,2]
[403598672,1769407840590,-150.0,0.0001615,2]
[403598673,1769407840599,-4298.0,0.00016154,2]
[403598674,1769407840609,-150.0,0.00016205,2]
[403598675,1769407840622,-500.0,0.00016205,2]
[403598676,1769407840631,-500.0,0.00016205,2]
[403598677,1769407840641,-500.0,0.00016205,2]
[403598678,1769407840651,-150.0,0.00016205,2]
[403598679,1769407840661,-400.55876,0.00016215,2]
[403598680,1769407840671,-400.55876,0.00016215,2]
[403598681,1769407840680,-151.0,0.00016215,2]
[403598682,1769407840690,-400.55876,0.00016215,2]
[403598683,1769407840701,-400.55876,0.00016215,2]
[403598684,1769407840711,-1000.0,0.00016215,2]
[403598685,1769407840720,-6970.66762,0.00016224,2]
[403598686,1769407840730,-1073.097,0.00016227,2]
[403598687,1769407840740,-180.54108515,0.00016227,2]
[403598688,1769407840749,-1000.0,0.00016254,2]
[403598689,1769407840760,-1000.0,0.00016254,2]
[403598690,1769407840769,-1000.0,0.00016254,2]
[403598691,1769407840779,-1000.0,0.00016254,2]
[403598692,1769407840788,-912.711,0.00016254,2]
[403598693,1769407840799,-500.0,0.00016259,2]
[403598694,1769407840808,-500.0,0.00016259,2]
[403598695,1769407840818,-500.0,0.00016259,2]
[403598696,1769407840828,-150.0,0.0001626,2]
[403598697,1769407840838,-500.0,0.0001626,2]
[403598698,1769407840847,-172.0,0.0001626,2]
[403598699,1769407840858,-348.0,0.0001626,2]
[403598700,1769407840868,-150.0,0.0001626,2]
[403598701,1769407840878,-1000.0,0.0001626,2]
[403598702,1769407840888,-1000.0,0.0001626,2]
[403598703,1769407840898,-1000.0,0.0001626,2]
[403598704,1769407840908,-8081.75591382,0.00016274,2]
[403598705,1769407840917,-191.901362,0.00016274,2]
[403598706,1769407840927,-191.901362,0.00016274,2]
[403598707,1769407840937,-191.901362,0.00016274,2]
[403598708,1769407840946,-191.901362,0.00016274,2]
[403598709,1769407840955,-151.0,0.00016274,2]
[403598710,1769407840964,-151.0,0.00016274,2]
[403598711,1769407840974,-151.0,0.00016274,2]
[403598712,1769407840983,-200.0,0.00016301,2]
[403598713,1769407840992,-151.0,0.00016301,2]
[403598714,1769407841002,-151.0,0.00016301,2]
[403598715,1769407841012,-151.0,0.00016301,2]
[403598716,1769407841022,-316.52250615,0.00016305,2]
[403598717,1769407841031,-10584.0,0.00016311,2]
[403598718,1769407841041,-150.0,0.00016314,2]
[403598719,1769407841051,-500.0,0.00016314,2]
[403598720,1769407841060,-150.0,0.00016314,2]
[403598721,1769407841069,-33717.0024925,0.00016315,2]
[403598722,1769407841078,-400.55876,0.00016315,2]
[403598723,1769407841087,-400.55876,0.00016315,2]
[403598724,1769407841099,-400.55876,0.00016315,2]
[403598725,1769407841108,-400.55876,0.00016315,2]
[403598726,1769407841118,-154.894153,0.00016315,2]
[403598727,1769407841127,-400.55876,0.00016315,2]
[403598728,1769407841136,-400.55876,0.00016315,2]
[403598729,1769407841145,-400.55876,0.00016315,2]
[403598730,1769407841155,-400.55876,0.00016315,2]
[403598731,1769407841164,-191.901362,0.00016315,2]
[403598732,1769407841173,-191.901362,0.00016315,2]
[403598733,1769407841183,-191.901362,0.00016315,2]
[403598734,1769407841192,-191.901354,0.00016315,2]
[403598735,1769407841202,-151.0,0.00016315,2]
[403598736,1769407841211,-151.0,0.00016315,2]
[403598737,1769407841222,-151.0,0.00016315,2]
[403598738,1769407841232,-4298.0,0.00016315,2]
[403598739,1769407841242,-867.98,0.00016361,2]
[403598740,1769407841253,-168.0,0.00016367,2]
[403598741,1769407841264,-1000.0,0.00016369,2]
[403598742,1769407841273,-329.58686501,0.00016369,2]
[403598743,1769407841283,-150.0,0.00016369,2]
[403598744,1769407841292,-482.70075638,0.00016369,2]
[403598745,1769407841301,-255.0,0.00016369,2]
[403598746,1769407841311,-152.0,0.00016375,4]
[403598747,1769407841320,-4298.0,0.00016399,2]
[403598748,1769407841330,-1086.0,0.000164,2]
[403598749,1769407841340,-1086.0,0.000164,2]
[403598750,1769407841349,-1086.0,0.000164,2]
[403598751,1769407841358,-1086.0,0.000164,2]
[403598752,1769407841367,-1086.0,0.000164,2]
[403598753,1769407841376,-837.0,0.000164,2]
[403598754,1769407841386,-837.0,0.000164,2]
[403598755,1769407841396,-182.0,0.000164,2]
[403598756,1769407841405,-837.0,0.000164,2]
[403598757,1769407841415,-837.0,0.000164,2]
[403598758,1769407841424,-400.55876,0.000164,2]
[403598759,1769407841433,-400.55876,0.000164,2]
[403598760,1769407841443,-400.55876,0.000164,2]
[403598761,1769407841452,-400.55876,0.000164,2]
[403598762,1769407841462,-4146.18953673,0.00016402,2]
[403598763,1769407841471,-1000.0,0.00016426,2]
[403598764,1769407841481,-1000.0,0.00016426,2]
[403598765,1769407841490,-1000.0,0.00016426,2]
[403598766,1769407841499,-1135.16674728,0.00016437,5]
[403598767,1769407841509,-173.53,0.00016437,2]
[403598768,1769407841518,-500.0,0.00016437,2]
[403598769,1769407841527,-500.0,0.00016437,2]
[403598770,1769407841537,-500.0,0.00016437,2]
[403598771,1769407841546,-400.42737409,0.00016437,2]
[403598772,1769407841556,-200.0,0.00016438,2]
[403598773,1769407841565,-501.67465248,0.00016438,2]
[403598774,1769407841575,-1000.0,0.00016438,2]
[403598775,1769407841585,-1000.0,0.00016438,2]
[403598776,1769407841594,-1000.0,0.00016438,2]
[403598777,1769407841604,-1000.0,0.00016438,2]
[403598778,1769407841614,-1000.0,0.00016438,2]
[403598779,1769407841624,-1000.0,0.00016438,2]
[403598780,1769407841635,-1000.0,0.00016438,2]
[403598781,1769407841645,-1039.17,0.00016438,2]
[403598782,1769407841654,-400.55876,0.00016438,2]
[403598783,1769407841665,-400.55876,0.00016438,2]
[403598784,1769407841675,-400.55876,0.00016438,2]
[403598785,1769407841686,-400.558759,0.00016438,2]
[403598786,1769407841696,-500.0,0.00016438,2]
[403598787,1769407841707,-500.0,0.00016438,2]
[403598788,1769407841717,-500.0,0.00016438,2]
[403598789,1769407841727,-500.0,0.00016438,2]
[403598790,1769407841737,-500.0,0.00016438,2]
[403598791,1769407841746,-500.0,0.00016438,2]
[403598792,1769407841756,-407.10424119,0.00016438,2]
[403598793,1769407841766,-500.0,0.00016438,2]
[403598794,1769407841776,-500.0,0.00016438,2]
[403598795,1769407841786,-500.0,0.00016438,2]
[403598796,1769407841795,-500.0,0.00016438,2]
[403598797,1769407841805,-500.0,0.00016438,2]
[403598798,1769407841815,-500.0,0.00016438,2]
[403598799,1769407841825,-500.0,0.00016438,2]
[403598800,1769407841835,-500.0,0.00016438,2]
[403598801,1769407841845,-500.0,0.00016438,2]
[403598802,1769407841855,-500.0,0.00016438,2]
[403598803,1769407841865,-500.0,0.00016438,2]
[403598804,1769407841874,-500.0,0.00016438,2]
[403598805,1769407841884,-500.0,0.00016438,2]
[403598806,1769407841893,-678.86026748,0.00016438,2]
[403598807,1769407841902,-678.86026748,0.00016438,2]
[403598808,1769407841912,-678.86026748,0.00016438,2]
[403598809,1769407841921,-678.86026748,0.00016438,2]
[403598810,1769407841931,-678.86026748,0.00016438,2]
[403598811,1769407841940,-678.86026748,0.00016438,2]
[403598812,1769407841950,-678.86026748,0.00016438,2]
[403598813,1769407841960,-678.86026748,0.00016438,2]
[403598814,1769407841970,-678.86026748,0.00016438,2]
[403598815,1769407841979,-678.86026748,0.00016438,2]
[403598816,1769407841988,-678.86026748,0.00016438,2]
[403598817,1769407841999,-678.86026748,0.00016438,2]
[403598818,1769407842008,-678.86026748,0.00016438,2]
[403598819,1769407842017,-678.86026748,0.00016438,2]
[403598820,1769407842026,-678.86026748,0.00016438,2]
[403598821,1769407842036,-678.86026748,0.00016438,2]
[403598822,1769407842045,-678.86026748,0.00016438,2]
[403598823,1769407842055,-678.86026748,0.00016438,2]
[403598824,1769407842064,-678.86026748,0.00016438,2]
[403598825,1769407842074,-678.86026748,0.00016438,2]
[403598826,1769407842083,-678.86026748,0.00016438,2]
[403598827,1769407842092,-678.86026748,0.00016438,2]
[403598828,1769407842103,-678.86026748,0.00016438,2]
[403598829,1769407842114,-678.86026748,0.00016438,2]
[403598830,1769407842123,-678.86026748,0.00016438,2]
[403598831,1769407842132,-678.86026748,0.00016438,2]
[403598832,1769407842142,-678.86026748,0.00016438,2]
[403598833,1769407842151,-678.86026748,0.00016438,2]
[403598834,1769407842160,-678.86026748,0.00016438,2]
[403598835,1769407842170,-678.86026748,0.00016438,2]
[403598836,1769407842180,-678.86026748,0.00016438,2]
[403598837,1769407842189,-678.86026748,0.00016438,2]
[403598838,1769407842199,-678.86026748,0.00016438,2]
[403598839,1769407842208,-678.86026748,0.00016438,2]
[403598840,1769407842218,-678.86026748,0.00016438,2]
[403598841,1769407842227,-678.86026748,0.00016438,2]
[403598842,1769407842237,-678.86026748,0.00016438,2]
[403598843,1769407842247,-678.86026748,0.00016438,2]
[403598844,1769407842256,-678.86026748,0.00016438,2]
[403598845,1769407842265,-678.86026748,0.00016438,2]
[403598846,1769407842275,-678.86026748,0.00016438,2]
[403598847,1769407842284,-678.86026748,0.00016438,2]
[403598848,1769407842294,-678.86026748,0.00016438,2]
[403598849,1769407842305,-678.86026748,0.00016438,2]
[403598850,1769407842314,-660.95626044,0.00016438,2]
[403598851,1769407842323,-660.95626044,0.00016438,2]
[403598852,1769407842332,-660.95626044,0.00016438,2]
[403598853,1769407842341,-660.95626044,0.00016438,2]
[403598854,1769407842351,-660.95626044,0.00016438,2]
[403598855,1769407842362,-660.95626044,0.00016438,2]
[403598856,1769407842371,-660.95626044,0.00016438,2]
[403598857,1769407842380,-660.95626044,0.00016438,2]
[403598858,1769407842389,-660.95626044,0.00016438,2]
[403598859,1769407842402,-660.95626044,0.00016438,2]
[403598860,1769407842411,-660.95626044,0.00016438,2]
[403598861,1769407842422,-660.95626044,0.00016438,2]
[403598862,1769407842431,-660.95626044,0.00016438,2]
[403598863,1769407842442,-660.95626044,0.00016438,2]
[403598864,1769407842451,-660.95626044,0.00016438,2]
[403598865,1769407842460,-660.95626044,0.00016438,2]
[403598866,1769407842470,-660.95626044,0.00016438,2]
[403598867,1769407842479,-660.95626044,0.00016438,2]
[403598868,1769407842488,-660.95626044,0.00016438,2]
[403598869,1769407842497,-660.95626044,0.00016438,2]
[403598870,1769407842507,-660.95626044,0.00016438,2]
[403598871,1769407842517,-660.95626044,0.00016438,2]
[403598873,1769407842526,-660.95626044,0.00016438,2]
[403598874,1769407842536,-500.0,0.00016438,2]
[403598875,1769407842545,-734.39584491,0.00016438,2]
[403598876,1769407842555,-734.39584491,0.00016438,2]
[403598877,1769407842564,-734.39584491,0.00016438,2]
[403598878,1769407842573,-734.39584491,0.00016438,2]
[403598879,1769407842583,-1340.55,0.00016438,2]
[403598880,1769407842592,-1340.55,0.00016438,2]
[403598881,1769407842602,-1340.55,0.00016438,2]
[403598882,1769407842611,-1340.55,0.00016438,2]
[403598883,1769407842626,-1340.55,0.00016438,2]
[403598884,1769407842636,-1340.55,0.00016438,2]
[403598885,1769407842646,-1340.55,0.00016438,2]
[403598886,1769407842656,-1340.55,0.00016438,2]
[403598888,1769407842667,-1340.55,0.00016438,2]
[403598890,1769407842678,-1340.55,0.00016438,2]
[403598892,1769407842687,-1340.55,0.00016438,2]
[403598893,1769407842697,-1340.55,0.00016438,2]
[403598895,1769407842707,-1340.55,0.00016438,2]
[403598897,1769407842717,-1340.55,0.00016438,2]
[403598899,1769407842727,-1340.55,0.00016438,2]
[403598900,1769407842737,-1340.55,0.00016438,2]
[403598901,1769407842747,-1340.55,0.00016438,2]
[403598902,1769407842757,-1340.55,0.00016438,2]
[403598903,1769407842767,-1340.55,0.00016438,2]
[403598904,1769407842777,-1340.55,0.00016438,2]
[403598906,1769407842787,-1340.55,0.00016438,2]
[403598908,1769407842796,-1340.55,0.00016438,2]
[403598910,1769407842806,-1340.55,0.00016438,2]
[403598911,1769407842815,-1340.61827204,0.00016438,2]
[403598912,1769407842825,-833.98,0.00016438,2]
[403598913,1769407842834,-151.0,0.00016438,2]
[403598914,1769407842844,-151.0,0.00016438,2]
[403598915,1769407842854,-151.0,0.00016438,2]
[403598916,1769407842863,-151.0,0.00016438,2]
[403598917,1769407842872,-151.0,0.00016438,2]
[403598918,1769407842882,-151.0,0.00016438,2]
[403598919,1769407842891,-151.0,0.00016438,2]
[403598920,1769407842900,-151.0,0.00016438,2]
[403598921,1769407843205,-228.213882,0.00016438,2]
[403598922,1769407843215,-1981.0,0.00016438,2]
[403598923,1769407843224,-1000.0,0.00016438,2]
[403598924,1769407843234,-165.3,0.0001644,2]
[403598925,1769407843243,-500.0,0.00016493,2]
[403598926,1769407843252,-14244.83607254,0.000165,2]
[403598927,1769407843263,-6970.66762,0.00016503,2]
[403598928,1769407843272,-300.0,0.00016506,2]
[403598929,1769407843281,-150.0,0.00016507,2]
[403598930,1769407843291,-200.0,0.00016507,2]
[403598931,1769407843300,-150.139,0.00016507,2]
[403598932,1769407843310,-177.537,0.00016507,2]
[403598933,1769407843319,-167.825,0.00016507,2]
[403598934,1769407843328,-150.074,0.00016507,2]
[403598935,1769407843337,-199.072,0.00016507,2]
[403598936,1769407843347,-150.0,0.00016507,2]
[403598937,1769407843356,-150.0,0.00016507,2]
[403598938,1769407843366,-150.157,0.00016507,2]
[403598939,1769407843375,-162.08,0.00016507,2]
[403598940,1769407843384,-618.724,0.00016507,2]
[403598941,1769407843394,-1333.0,0.00016507,2]
[403598942,1769407843403,-1408.0,0.00016507,2]
[403598943,1769407843413,-3477.0,0.00016507,2]
[403598944,1769407843422,-210.327,0.00016507,2]
[403598945,1769407843432,-1269.0,0.00016507,2]
[403598946,1769407843441,-916.0,0.00016507,2]
[403598947,1769407843451,-1204.0,0.00016507,2]
[403598948,1769407843460,-1315.0,0.00016507,2]
[403598949,1769407843469,-2455.897,0.00016507,2]
[403598950,1769407843478,-567.0,0.00016507,2]
[403598951,1769407843488,-4831.0,0.00016507,2]
[403598952,1769407843497,-675.19,0.00016515,2]
[403598953,1769407843506,-433.0,0.00016517,2]
[403598954,1769407843515,-500.0,0.00016548,2]
[403598955,1769407843524,-300.0,0.00016587,2]
[403598956,1769407843534,-500.0,0.00016587,2]
[403598957,1769407843543,-4146.18953673,0.00016589,2]
[403598958,1769407843553,-790.1,0.000166,5]
[403598959,1769407843563,-500.0,0.00016602,2]
[403598960,1769407843572,-233.48,0.00016603,2]
[403598961,1769407843581,-154.46158348,0.00016612,2]
[403598962,1769407843591,-1336.0,0.00016617,2]
[403598963,1769407843600,-675.38550237,0.00016624,2]
[403598964,1769407843609,-300.0,0.00016624,2]
[403598965,1769407843619,-520.0,0.00016625,2]
[403598966,1769407843630,-500.0,0.00016625,2]
[403598967,1769407843640,-500.0,0.00016625,2]
[403598968,1769407843650,-500.0,0.00016625,2]
[403598969,1769407843659,-549.0,0.00016625,2]
[403598970,1769407843669,-500.0,0.00016625,2]
[403598971,1769407843678,-500.0,0.00016625,2]
[403598972,1769407843688,-500.0,0.00016625,2]
[403598973,1769407843697,-500.0,0.00016625,2]
[403598974,1769407843707,-500.0,0.00016625,2]
[403598975,1769407843716,-500.0,0.00016625,2]
[403598976,1769407843726,-500.0,0.00016625,2]
[403598977,1769407843735,-500.0,0.00016625,2]
[403598978,1769407843745,-500.0,0.00016625,2]
[403598979,1769407843755,-500.0,0.00016625,2]
[403598980,1769407843765,-500.0,0.00016625,2]
[403598981,1769407843774,-500.0,0.00016625,2]
[403598982,1769407843783,-500.0,0.00016625,2]
[403598983,1769407843793,-500.0,0.00016625,2]
[403598984,1769407843803,-500.0,0.00016625,2]
[403598985,1769407843813,-500.0,0.00016625,2]
[403598986,1769407843823,-500.0,0.00016625,2]
[403598987,1769407843832,-500.0,0.00016625,2]
[403598988,1769407843841,-500.0,0.00016625,2]
[403598989,1769407843850,-500.0,0.00016625,2]
[403598990,1769407843860,-500.0,0.00016625,2]
[403598991,1769407843869,-500.0,0.00016625,2]
[403598992,1769407843879,-500.0,0.00016625,2]
[403598993,1769407843888,-500.0,0.00016625,2]
[403598994,1769407843897,-500.0,0.00016625,2]
[403598995,1769407843907,-500.0,0.00016625,2]
[403598996,1769407843916,-500.0,0.00016625,2]
[403598997,1769407843926,-500.0,0.00016625,2]
[403598998,1769407843935,-500.0,0.00016625,2]
[403598999,1769407843945,-500.0,0.00016625,2]
[403599000,1769407843954,-500.0,0.00016625,2]
[403599001,1769407843963,-500.0,0.00016625,2]
[403599002,1769407843973,-500.0,0.00016625,2]
[403599003,1769407843982,-500.0,0.00016625,2]
[403599004,1769407843991,-500.0,0.00016625,2]
[403599005,1769407844000,-500.0,0.00016625,2]
[403599006,1769407844010,-500.0,0.00016625,2]
[403599007,1769407844020,-500.0,0.00016625,2]
[403599008,1769407844030,-500.0,0.00016625,2]
[403599009,1769407844040,-500.0,0.00016625,2]
[403599010,1769407844049,-500.0,0.00016625,2]
[403599011,1769407844059,-500.0,0.00016625,2]
[403599012,1769407844069,-500.0,0.00016625,2]
[403599013,1769407844078,-500.0,0.00016625,2]
[403599014,1769407844087,-500.0,0.00016625,2]
[403599015,1769407844096,-500.0,0.00016625,2]
[403599016,1769407844106,-500.0,0.00016625,2]
[403599017,1769407844117,-500.0,0.00016625,2]
[403599018,1769407844127,-500.0,0.00016625,2]
[403599019,1769407844138,-500.0,0.00016625,2]
[403599020,1769407844147,-500.0,0.00016625,2]